[Event "*** Titled Tuesday Blitz"]
[Site "Chess.com"]
[Date "2020.12.01"]
[Round "5"]
[White "PelinGorki"]
[Black "ENajer77"]
[Result "0-1"]
[WhiteElo "2418"]
[BlackElo "2678"]
[TimeControl "180+1"]
[EndTime "10:54:48 PST"]
[Termination "ENajer77 won by resignation"]

1. e4 {[%clk 0:03:00.9]} 1... c6 {[%clk 0:02:12.4]} 2. Nc3 {[%clk 0:03:00.2]}
2... d5 {[%clk 0:02:11]} 3. d3 {[%clk 0:03:00.8]} 3... e5 {[%clk 0:02:04.9]} 4.
f4 {[%clk 0:03:00.7]} 4... exf4 {[%clk 0:02:03.2]} 5. Bxf4 {[%clk 0:02:57.5]}
5... Nf6 {[%clk 0:01:57]} 6. Qe2 {[%clk 0:02:56.1]} 6... Be7 {[%clk 0:01:55.6]}
7. O-O-O {[%clk 0:02:43.6]} 7... O-O {[%clk 0:01:55]} 8. e5 {[%clk 0:02:32.3]}
8... Bg4 {[%clk 0:01:44.9]} 9. exf6 {[%clk 0:02:06]} 9... Bxe2 {[%clk
0:01:43.5]} 10. fxe7 {[%clk 0:02:06.3]} 10... Qxe7 {[%clk 0:01:44.1]} 11. Bxe2
{[%clk 0:02:03.3]} 11... Nd7 {[%clk 0:01:43.8]} 12. d4 {[%clk 0:01:47.3]} 12...
b5 {[%clk 0:01:37.6]} 13. Bd3 {[%clk 0:01:45.8]} 13... b4 {[%clk 0:01:34.1]} 14.
Nce2 {[%clk 0:01:45.8]} 14... a5 {[%clk 0:01:32]} 15. Nf3 {[%clk 0:01:43.5]}
15... a4 {[%clk 0:01:32.3]} 16. Rde1 {[%clk 0:01:38]} 16... b3 {[%clk
0:01:29.5]} 17. axb3 {[%clk 0:01:20.3]} 17... axb3 {[%clk 0:01:28.8]} 18. cxb3
{[%clk 0:01:21.2]} 18... Qb4 {[%clk 0:01:19.6]} 19. Kc2 {[%clk 0:01:14.8]} 19...
c5 {[%clk 0:01:15.4]} 20. Bd6 {[%clk 0:00:39.2]} 20... Rfb8 {[%clk 0:01:06]} 21.
Bxb8 {[%clk 0:00:31.4]} 21... Rxb8 {[%clk 0:01:06.9]} 22. Nc1 {[%clk 0:00:26.5]}
22... c4 {[%clk 0:01:06.4]} 23. bxc4 {[%clk 0:00:22.8]} 23... dxc4 {[%clk
0:01:05.1]} 24. Bf5 {[%clk 0:00:22.1]} 24... Qxb2+ {[%clk 0:01:04.8]} 25. Kd1
{[%clk 0:00:22.2]} 25... Nf6 {[%clk 0:01:00.5]} 26. Re2 {[%clk 0:00:21.4]} 26...
Qa3 {[%clk 0:00:58.1]} 27. Rhe1 {[%clk 0:00:20.8]} 27... g6 {[%clk 0:00:54.7]}
28. Bc2 {[%clk 0:00:19.3]} 28... Nd5 {[%clk 0:00:53.6]} 29. Re8+ {[%clk
0:00:17.9]} 29... Rxe8 {[%clk 0:00:53.5]} 30. Rxe8+ {[%clk 0:00:18.8]} 30... Kg7
{[%clk 0:00:52.8]} 31. Re5 {[%clk 0:00:11.8]} 31... Ne3+ {[%clk 0:00:47.8]} 32.
Kd2 {[%clk 0:00:11.6]} 32... Nxg2 {[%clk 0:00:41.2]} 33. Ng5 {[%clk 0:00:06.5]}
33... Qb4+ {[%clk 0:00:33.7]} 34. Ke2 {[%clk 0:00:03.4]} 34... Qc3 {[%clk
0:00:32.9]} 35. Kd1 {[%clk 0:00:01.2]} 35... Ne3+ {[%clk 0:00:30.6]} 36. Rxe3
{[%clk 0:00:01.8]} 36... Qxe3 {[%clk 0:00:31]} 37. Ne4 {[%clk 0:00:02.5]} 37...
Qxd4+ {[%clk 0:00:29.8]} 38. Ke2 {[%clk 0:00:02.7]} 38... f5 {[%clk 0:00:28.3]}
39. Nd2 {[%clk 0:00:03.2]} 39... Qe5+ {[%clk 0:00:26.8]} 40. Kf2 {[%clk
0:00:02.5]} 40... Qxh2+ {[%clk 0:00:26.4]} 41. Ke3 {[%clk 0:00:03.4]} 41... f4+
{[%clk 0:00:25.2]} 0-1

[Event "*** Titled Tuesday Blitz"]
[Site "Chess.com"]
[Date "2020.12.01"]
[Round "5"]
[White "profofchess"]
[Black "theredking89"]
[Result "0-1"]
[WhiteElo "2423"]
[BlackElo "2636"]
[TimeControl "180+1"]
[EndTime "10:54:48 PST"]
[Termination "theredking89 won by checkmate"]

1. e4 {[%clk 0:03:00.9]} 1... c5 {[%clk 0:02:40.1]} 2. Nf3 {[%clk 0:03:00.5]}
2... d6 {[%clk 0:02:37]} 3. c3 {[%clk 0:03:00.4]} 3... Nf6 {[%clk 0:02:36.5]} 4.
Bc4 {[%clk 0:03:00.5]} 4... e6 {[%clk 0:02:36.3]} 5. Qe2 {[%clk 0:03:00.1]} 5...
Be7 {[%clk 0:02:35.8]} 6. Bb3 {[%clk 0:03:00.1]} 6... O-O {[%clk 0:02:35.6]} 7.
O-O {[%clk 0:03:00.4]} 7... Nc6 {[%clk 0:02:32.8]} 8. d4 {[%clk 0:03:00]} 8...
b6 {[%clk 0:02:31.4]} 9. Rd1 {[%clk 0:02:40.2]} 9... cxd4 {[%clk 0:02:28.1]} 10.
cxd4 {[%clk 0:02:39.6]} 10... Bb7 {[%clk 0:02:28.2]} 11. Nc3 {[%clk 0:02:37]}
11... Rc8 {[%clk 0:02:27.6]} 12. Bg5 {[%clk 0:02:34.2]} 12... h6 {[%clk
0:02:26.5]} 13. Be3 {[%clk 0:01:47.3]} 13... Na5 {[%clk 0:02:22.9]} 14. Bc2
{[%clk 0:01:47.5]} 14... Nc4 {[%clk 0:02:23]} 15. Bc1 {[%clk 0:01:47.3]} 15...
Re8 {[%clk 0:02:15.6]} 16. e5 {[%clk 0:01:32.1]} 16... Nd7 {[%clk 0:02:15.5]}
17. Bd3 {[%clk 0:01:20.6]} 17... Na5 {[%clk 0:02:08.9]} 18. Nb5 {[%clk
0:00:59.2]} 18... dxe5 {[%clk 0:01:53.9]} 19. Nxe5 {[%clk 0:00:53]} 19... a6
{[%clk 0:01:10.5]} 20. Nc3 {[%clk 0:00:51.9]} 20... b5 {[%clk 0:01:05.7]} 21.
Qg4 {[%clk 0:00:30]} 21... Nf6 {[%clk 0:00:53.9]} 22. Qg3 {[%clk 0:00:29.8]}
22... Kf8 {[%clk 0:00:33.1]} 23. Bg6 {[%clk 0:00:20.6]} 23... b4 {[%clk
0:00:25.7]} 24. Nxf7 {[%clk 0:00:20]} 24... Qc7 {[%clk 0:00:22]} 25. Bf4 {[%clk
0:00:17.6]} 25... Qc6 {[%clk 0:00:22.5]} 26. Ne5 {[%clk 0:00:08.1]} 26... Qxg2+
{[%clk 0:00:20.9]} 27. Qxg2 {[%clk 0:00:08.4]} 27... Bxg2 {[%clk 0:00:21]} 28.
Kxg2 {[%clk 0:00:08]} 28... bxc3 {[%clk 0:00:21.1]} 29. Bxe8 {[%clk 0:00:05.1]}
29... cxb2 {[%clk 0:00:20.8]} 30. Rab1 {[%clk 0:00:04.8]} 30... Kxe8 {[%clk
0:00:19.5]} 31. Rxb2 {[%clk 0:00:04.6]} 31... Nd5 {[%clk 0:00:19.8]} 32. Bg3
{[%clk 0:00:04.4]} 32... Nc4 {[%clk 0:00:18.3]} 33. Nxc4 {[%clk 0:00:04.2]}
33... Rxc4 {[%clk 0:00:19.2]} 34. Rb8+ {[%clk 0:00:04.2]} 34... Kf7 {[%clk
0:00:19.5]} 35. Rb7 {[%clk 0:00:04.6]} 35... g5 {[%clk 0:00:18.9]} 36. Bd6
{[%clk 0:00:04]} 36... Kf6 {[%clk 0:00:18.6]} 37. Bxe7+ {[%clk 0:00:04.2]} 37...
Nxe7 {[%clk 0:00:19.5]} 38. Re1 {[%clk 0:00:04.1]} 38... Nd5 {[%clk 0:00:19.3]}
39. Ra7 {[%clk 0:00:04.2]} 39... Nf4+ {[%clk 0:00:19.2]} 40. Kf3 {[%clk
0:00:04.5]} 40... Ra4 {[%clk 0:00:19.2]} 41. Rb7 {[%clk 0:00:04]} 41... Rxa2
{[%clk 0:00:19]} 42. Rb6 {[%clk 0:00:04.2]} 42... Ra3+ {[%clk 0:00:19.2]} 43.
Kg4 {[%clk 0:00:03.2]} 43... h5# {[%clk 0:00:18.9]} 0-1

[Event "*** Titled Tuesday Blitz"]
[Site "Chess.com"]
[Date "2020.12.01"]
[Round "5"]
[White "Konavets"]
[Black "Chesswizard_2007"]
[Result "1/2-1/2"]
[WhiteElo "3004"]
[BlackElo "2695"]
[TimeControl "180+1"]
[EndTime "10:54:50 PST"]
[Termination "Game drawn by repetition"]

1. e4 {[%clk 0:02:30.6]} 1... e5 {[%clk 0:02:59.7]} 2. Nf3 {[%clk 0:02:29]} 2...
Nc6 {[%clk 0:02:59.7]} 3. d4 {[%clk 0:02:29.5]} 3... exd4 {[%clk 0:03:00.6]} 4.
Nxd4 {[%clk 0:02:30.3]} 4... Bc5 {[%clk 0:02:57.6]} 5. Nb3 {[%clk 0:02:30.1]}
5... Bb6 {[%clk 0:02:57]} 6. Nc3 {[%clk 0:02:30.6]} 6... Nf6 {[%clk 0:02:56.4]}
7. Qe2 {[%clk 0:02:31.2]} 7... d6 {[%clk 0:02:56.1]} 8. Be3 {[%clk 0:02:31.1]}
8... Be6 {[%clk 0:02:55.6]} 9. O-O-O {[%clk 0:02:30.9]} 9... Qe7 {[%clk
0:02:55]} 10. Kb1 {[%clk 0:02:31]} 10... O-O-O {[%clk 0:02:54.3]} 11. f3 {[%clk
0:02:31.1]} 11... Rhe8 {[%clk 0:02:53.2]} 12. Bxb6 {[%clk 0:02:31.3]} 12... axb6
{[%clk 0:02:53]} 13. Qf2 {[%clk 0:02:32.2]} 13... Kb8 {[%clk 0:02:52.5]} 14. Bb5
{[%clk 0:02:32.2]} 14... Bd7 {[%clk 0:02:37.8]} 15. Rhe1 {[%clk 0:02:31.8]}
15... Ne5 {[%clk 0:02:35.5]} 16. a4 {[%clk 0:02:31.7]} 16... g5 {[%clk
0:02:27.6]} 17. a5 {[%clk 0:02:23.7]} 17... bxa5 {[%clk 0:02:24.2]} 18. Nxa5
{[%clk 0:02:24.6]} 18... Bxb5 {[%clk 0:02:09.7]} 19. Nxb5 {[%clk 0:02:25.5]}
19... b6 {[%clk 0:02:10.6]} 20. Nb3 {[%clk 0:02:04.8]} 20... Kb7 {[%clk
0:02:06.9]} 21. h4 {[%clk 0:02:04.7]} 21... h6 {[%clk 0:02:05.3]} 22. hxg5
{[%clk 0:02:04.3]} 22... hxg5 {[%clk 0:02:04.3]} 23. N3d4 {[%clk 0:02:02.5]}
23... Ra8 {[%clk 0:02:01.3]} 24. b3 {[%clk 0:02:01]} 24... Red8 {[%clk
0:01:57.7]} 25. c4 {[%clk 0:02:00.8]} 25... Ra5 {[%clk 0:01:56.6]} 26. Nf5
{[%clk 0:01:59.8]} 26... Qe6 {[%clk 0:01:52.6]} 27. Qb2 {[%clk 0:01:55.5]} 27...
Rda8 {[%clk 0:01:51]} 28. Re2 {[%clk 0:01:50.1]} 28... Ne8 {[%clk 0:01:21.2]}
29. Red2 {[%clk 0:01:47.9]} 29... Nxc4 {[%clk 0:01:09]} 30. bxc4 {[%clk
0:01:47.2]} 30... Qxc4 {[%clk 0:01:09.9]} 31. Nfd4 {[%clk 0:01:43.8]} 31... c5
{[%clk 0:00:58.1]} 32. Rc2 {[%clk 0:01:08.2]} 32... Ra1+ {[%clk 0:00:46.1]} 33.
Qxa1 {[%clk 0:01:04.8]} 33... Rxa1+ {[%clk 0:00:47]} 34. Kxa1 {[%clk 0:01:05.7]}
34... Qa4+ {[%clk 0:00:47.7]} 35. Kb1 {[%clk 0:01:04.4]} 35... cxd4 {[%clk
0:00:48.3]} 36. Nxd4 {[%clk 0:01:04.9]} 36... Nc7 {[%clk 0:00:46.1]} 37. Rd3
{[%clk 0:00:45.1]} 37... Nb5 {[%clk 0:00:37]} 38. Rcd2 {[%clk 0:00:43.5]} 38...
Na3+ {[%clk 0:00:33.7]} 39. Ka1 {[%clk 0:00:24.8]} 39... Nc4+ {[%clk 0:00:25.6]}
40. Ra2 {[%clk 0:00:25]} 40... Qb4 {[%clk 0:00:25.6]} 41. Ra7+ {[%clk 0:00:25]}
41... Kc8 {[%clk 0:00:20.2]} 42. Ra8+ {[%clk 0:00:24.7]} 42... Kd7 {[%clk
0:00:19.6]} 43. Ra7+ {[%clk 0:00:22.9]} 43... Ke8 {[%clk 0:00:18.2]} 44. Ra8+
{[%clk 0:00:20.1]} 44... Kd7 {[%clk 0:00:18]} 45. Ra7+ {[%clk 0:00:16.4]} 45...
Kc8 {[%clk 0:00:16.7]} 46. Ra8+ {[%clk 0:00:16.2]} 46... Kd7 {[%clk 0:00:16]}
1/2-1/2

[Event "*** Titled Tuesday Blitz"]
[Site "Chess.com"]
[Date "2020.12.01"]
[Round "5"]
[White "HanSchut"]
[Black "MaxLeto"]
[Result "0-1"]
[WhiteElo "2202"]
[BlackElo "2375"]
[TimeControl "180+1"]
[EndTime "10:54:50 PST"]
[Termination "MaxLeto won by checkmate"]

1. e4 {[%clk 0:03:00.9]} 1... c5 {[%clk 0:02:37.4]} 2. Nf3 {[%clk 0:03:00.3]}
2... d6 {[%clk 0:02:37.2]} 3. d4 {[%clk 0:02:56.8]} 3... cxd4 {[%clk 0:02:38.1]}
4. Nxd4 {[%clk 0:02:57.4]} 4... Nf6 {[%clk 0:02:38.7]} 5. f3 {[%clk 0:02:57.8]}
5... a6 {[%clk 0:02:35.9]} 6. c4 {[%clk 0:02:57.7]} 6... e6 {[%clk 0:02:35.9]}
7. Nc3 {[%clk 0:02:57.1]} 7... Be7 {[%clk 0:02:36.8]} 8. Be3 {[%clk 0:02:53.2]}
8... b6 {[%clk 0:02:37.1]} 9. Qd2 {[%clk 0:02:52.2]} 9... Bb7 {[%clk 0:02:37]}
10. Rc1 {[%clk 0:02:52]} 10... O-O {[%clk 0:02:33.9]} 11. Be2 {[%clk 0:02:51.9]}
11... Nbd7 {[%clk 0:02:31.6]} 12. O-O {[%clk 0:02:51.9]} 12... Rc8 {[%clk
0:02:28.2]} 13. Rfd1 {[%clk 0:02:52.2]} 13... Qc7 {[%clk 0:02:27.8]} 14. b3
{[%clk 0:02:52.2]} 14... Qb8 {[%clk 0:02:26.7]} 15. Bf1 {[%clk 0:02:50.9]} 15...
Bd8 {[%clk 0:02:26.2]} 16. Kh1 {[%clk 0:02:49.2]} 16... Bc7 {[%clk 0:02:25.2]}
17. Qf2 {[%clk 0:02:47.9]} 17... Kh8 {[%clk 0:01:18.2]} 18. Qg1 {[%clk
0:02:42.6]} 18... Rg8 {[%clk 0:01:17.8]} 19. b4 {[%clk 0:02:41.4]} 19... g5
{[%clk 0:01:15.4]} 20. g4 {[%clk 0:01:57.7]} 20... Rg6 {[%clk 0:00:48.7]} 21.
Nb3 {[%clk 0:01:21.5]} 21... Ne5 {[%clk 0:00:43.4]} 22. Kg2 {[%clk 0:01:11.2]}
22... Nexg4 {[%clk 0:00:12.7]} 23. Bxb6 {[%clk 0:00:56.4]} 23... Ne5 {[%clk
0:00:07.3]} 24. Ba7 {[%clk 0:00:55.9]} 24... Qa8 {[%clk 0:00:07.2]} 25. Bd4
{[%clk 0:00:51.2]} 25... Nh5 {[%clk 0:00:07.2]} 26. Kf2 {[%clk 0:00:49.1]} 26...
Nf4 {[%clk 0:00:06.8]} 27. Ke1 {[%clk 0:00:48.1]} 27... Bb8 {[%clk 0:00:04.9]}
28. Bxe5+ {[%clk 0:00:46.3]} 28... dxe5 {[%clk 0:00:04.9]} 29. c5 {[%clk
0:00:46.9]} 29... Bc6 {[%clk 0:00:03.8]} 30. Na5 {[%clk 0:00:43.5]} 30... Bb5
{[%clk 0:00:03.2]} 31. Nxb5 {[%clk 0:00:42.9]} 31... axb5 {[%clk 0:00:04.1]} 32.
Bxb5 {[%clk 0:00:40.3]} 32... Bc7 {[%clk 0:00:05]} 33. Nc6 {[%clk 0:00:31.2]}
33... Qxa2 {[%clk 0:00:04.8]} 34. Rd2 {[%clk 0:00:28.9]} 34... Qa3 {[%clk
0:00:04.3]} 35. Ne7 {[%clk 0:00:25.6]} 35... Qxc1+ {[%clk 0:00:04.5]} 36. Rd1
{[%clk 0:00:23.4]} 36... Qc3+ {[%clk 0:00:04.1]} 37. Rd2 {[%clk 0:00:22.1]}
37... Rd8 {[%clk 0:00:04.5]} 38. Nxg6+ {[%clk 0:00:15]} 38... fxg6 {[%clk
0:00:05.4]} 39. Qf2 {[%clk 0:00:15.6]} 39... Qc1+ {[%clk 0:00:05.5]} 40. Rd1
{[%clk 0:00:11.5]} 40... Qxd1# {[%clk 0:00:06.4]} 0-1

[Event "*** Titled Tuesday Blitz"]
[Site "Chess.com"]
[Date "2020.12.01"]
[Round "5"]
[White "FMalexhdez"]
[Black "GM_LOADING"]
[Result "1-0"]
[WhiteElo "2304"]
[BlackElo "2462"]
[TimeControl "180+1"]
[EndTime "10:54:52 PST"]
[Termination "FMalexhdez won by resignation"]

1. e4 {[%clk 0:03:00.9]} 1... e5 {[%clk 0:02:55.7]} 2. Nf3 {[%clk 0:03:00.6]}
2... Nc6 {[%clk 0:02:56.1]} 3. Bc4 {[%clk 0:03:01.1]} 3... Nf6 {[%clk
0:02:56.1]} 4. d3 {[%clk 0:03:01.1]} 4... h6 {[%clk 0:02:55.6]} 5. O-O {[%clk
0:02:59.2]} 5... d6 {[%clk 0:02:54.4]} 6. c3 {[%clk 0:02:59.2]} 6... g6 {[%clk
0:02:52.9]} 7. Re1 {[%clk 0:02:55.2]} 7... Bg7 {[%clk 0:02:52.7]} 8. d4 {[%clk
0:02:48.4]} 8... Qe7 {[%clk 0:02:50.1]} 9. Nbd2 {[%clk 0:02:18.5]} 9... O-O
{[%clk 0:02:46.7]} 10. Nf1 {[%clk 0:02:11.4]} 10... Bg4 {[%clk 0:02:42.1]} 11.
d5 {[%clk 0:02:08.4]} 11... Nb8 {[%clk 0:02:39.5]} 12. h3 {[%clk 0:02:08.3]}
12... Bc8 {[%clk 0:02:38.7]} 13. Ng3 {[%clk 0:01:51.2]} 13... Nbd7 {[%clk
0:02:37.8]} 14. Be3 {[%clk 0:01:43.6]} 14... Kh7 {[%clk 0:02:26]} 15. b4 {[%clk
0:01:41.4]} 15... a5 {[%clk 0:02:11.9]} 16. a3 {[%clk 0:01:39.2]} 16... Nb6
{[%clk 0:01:58.9]} 17. Bd3 {[%clk 0:01:37.6]} 17... Nbd7 {[%clk 0:01:35.8]} 18.
Qc2 {[%clk 0:01:33.9]} 18... c6 {[%clk 0:01:32]} 19. c4 {[%clk 0:01:33.6]} 19...
cxd5 {[%clk 0:01:27.9]} 20. cxd5 {[%clk 0:01:20.1]} 20... Re8 {[%clk 0:01:23.9]}
21. Rec1 {[%clk 0:01:15.9]} 21... Nf8 {[%clk 0:01:20.8]} 22. Bb6 {[%clk
0:01:12.5]} 22... a4 {[%clk 0:01:18.5]} 23. Bb5 {[%clk 0:01:03.4]} 23... Bd7
{[%clk 0:01:17]} 24. Qd3 {[%clk 0:01:02.1]} 24... Bxb5 {[%clk 0:01:00.9]} 25.
Qxb5 {[%clk 0:01:00.1]} 25... N8d7 {[%clk 0:01:01]} 26. Rc7 {[%clk 0:00:57.7]}
26... Rec8 {[%clk 0:00:56.6]} 27. Rac1 {[%clk 0:00:52.8]} 27... Qe8 {[%clk
0:00:53.8]} 28. Be3 {[%clk 0:00:45.2]} 28... b6 {[%clk 0:00:24.2]} 29. Nd2
{[%clk 0:00:43.3]} 29... h5 {[%clk 0:00:14.6]} 30. Qc6 {[%clk 0:00:37.4]} 30...
Rxc7 {[%clk 0:00:14.2]} 31. Qxc7 {[%clk 0:00:37.3]} 31... h4 {[%clk 0:00:13.9]}
32. Ne2 {[%clk 0:00:35.7]} 32... Bf8 {[%clk 0:00:11.9]} 33. Bxb6 {[%clk
0:00:33.8]} 33... Bh6 {[%clk 0:00:07.9]} 34. Be3 {[%clk 0:00:32.5]} 34... Bxe3
{[%clk 0:00:06.9]} 35. fxe3 {[%clk 0:00:32.3]} 35... Qf8 {[%clk 0:00:07.5]} 36.
Rc6 {[%clk 0:00:28.8]} 36... Qh6 {[%clk 0:00:07.3]} 37. Nf1 {[%clk 0:00:28.6]}
37... g5 {[%clk 0:00:02.6]} 38. Rxd6 {[%clk 0:00:28.4]} 38... g4 {[%clk
0:00:03]} 39. Rxd7 {[%clk 0:00:18.2]} 39... Nxd7 {[%clk 0:00:02.6]} 40. Qxd7
{[%clk 0:00:18.4]} 1-0

[Event "*** Titled Tuesday Blitz"]
[Site "Chess.com"]
[Date "2020.12.01"]
[Round "5"]
[White "queen_iryna"]
[Black "WPWPWP-2015"]
[Result "0-1"]
[WhiteElo "2314"]
[BlackElo "2492"]
[TimeControl "180+1"]
[EndTime "10:54:56 PST"]
[Termination "WPWPWP-2015 won by resignation"]

1. e4 {[%clk 0:03:00.9]} 1... e5 {[%clk 0:02:56.4]} 2. Nf3 {[%clk 0:03:00.6]}
2... Nf6 {[%clk 0:02:55.9]} 3. d3 {[%clk 0:03:00.4]} 3... Nc6 {[%clk 0:02:55]}
4. Be2 {[%clk 0:02:59.9]} 4... Be7 {[%clk 0:02:54.6]} 5. O-O {[%clk 0:02:59.2]}
5... O-O {[%clk 0:02:54.3]} 6. c3 {[%clk 0:02:59.4]} 6... d5 {[%clk 0:02:51.2]}
7. Nbd2 {[%clk 0:02:58.6]} 7... h6 {[%clk 0:02:50.2]} 8. b4 {[%clk 0:02:55.9]}
8... a6 {[%clk 0:02:49.5]} 9. Bb2 {[%clk 0:02:55.7]} 9... Be6 {[%clk 0:02:43.7]}
10. Re1 {[%clk 0:02:50.9]} 10... Re8 {[%clk 0:02:39.9]} 11. h3 {[%clk
0:02:50.2]} 11... Qd7 {[%clk 0:02:32.1]} 12. Bf1 {[%clk 0:02:43.7]} 12... dxe4
{[%clk 0:02:29.5]} 13. dxe4 {[%clk 0:02:41.7]} 13... Rad8 {[%clk 0:02:28]} 14.
Qc2 {[%clk 0:02:41.2]} 14... Nh5 {[%clk 0:02:25.2]} 15. Nc4 {[%clk 0:02:36.3]}
15... Bf6 {[%clk 0:02:01.5]} 16. Rad1 {[%clk 0:02:26]} 16... Qc8 {[%clk
0:02:00.9]} 17. Ne3 {[%clk 0:02:21.7]} 17... Nf4 {[%clk 0:01:58.1]} 18. Kh2
{[%clk 0:02:18.6]} 18... g6 {[%clk 0:01:53.9]} 19. g3 {[%clk 0:02:18.2]} 19...
Nxh3 {[%clk 0:01:46.7]} 20. Bxh3 {[%clk 0:02:09.1]} 20... Bxh3 {[%clk
0:01:45.6]} 21. Rxd8 {[%clk 0:02:08.4]} 21... Bxd8 {[%clk 0:01:41.1]} 22. a4
{[%clk 0:01:50.7]} 22... h5 {[%clk 0:01:30.6]} 23. b5 {[%clk 0:01:48.8]} 23...
axb5 {[%clk 0:01:16.3]} 24. axb5 {[%clk 0:01:49.6]} 24... Na5 {[%clk 0:01:11.2]}
25. c4 {[%clk 0:01:47.9]} 25... Bf6 {[%clk 0:00:56.1]} 26. Nd5 {[%clk
0:01:46.9]} 26... Bg7 {[%clk 0:00:54.7]} 27. Nxe5 {[%clk 0:01:27.7]} 27... c6
{[%clk 0:00:44.3]} 28. Nf4 {[%clk 0:01:17.3]} 28... Bxe5 {[%clk 0:00:33.6]} 29.
Bxe5 {[%clk 0:01:14.3]} 29... Rxe5 {[%clk 0:00:32.2]} 30. Nxh3 {[%clk
0:01:14.2]} 30... cxb5 {[%clk 0:00:31.2]} 31. Qc3 {[%clk 0:01:10.1]} 31... Nxc4
{[%clk 0:00:30.3]} 32. Nf4 {[%clk 0:01:06.5]} 32... h4 {[%clk 0:00:22.1]} 33.
gxh4 {[%clk 0:01:00.6]} 33... Qg4 {[%clk 0:00:19.3]} 34. Ng2 {[%clk 0:00:55.4]}
34... g5 {[%clk 0:00:05]} 35. f3 {[%clk 0:00:52.1]} 35... Qh5 {[%clk 0:00:04.7]}
36. Rd1 {[%clk 0:00:47.3]} 36... gxh4 {[%clk 0:00:04.2]} 37. Rd8+ {[%clk
0:00:47.1]} 37... Kh7 {[%clk 0:00:04.5]} 38. Qd3 {[%clk 0:00:32.4]} 38... h3
{[%clk 0:00:03.3]} 39. Nf4 {[%clk 0:00:29.6]} 39... Qg5 {[%clk 0:00:03.6]} 40.
Qd7 {[%clk 0:00:20.8]} 40... Qxf4+ {[%clk 0:00:02.8]} 41. Kxh3 {[%clk
0:00:17.3]} 41... Qxf3+ {[%clk 0:00:03.1]} 42. Kh2 {[%clk 0:00:16.3]} 42... Rh5+
{[%clk 0:00:03.9]} 0-1

[Event "*** Titled Tuesday Blitz"]
[Site "Chess.com"]
[Date "2020.12.01"]
[Round "5"]
[White "Berardino"]
[Black "GM_dmitrij"]
[Result "0-1"]
[WhiteElo "2636"]
[BlackElo "2950"]
[TimeControl "180+1"]
[EndTime "10:54:57 PST"]
[Termination "GM_dmitrij won by resignation"]

1. e4 {[%clk 0:03:00.9]} 1... c6 {[%clk 0:02:58.1]} 2. d4 {[%clk 0:02:54.6]}
2... d5 {[%clk 0:02:59]} 3. exd5 {[%clk 0:02:55]} 3... cxd5 {[%clk 0:02:59.9]}
4. c4 {[%clk 0:02:55.5]} 4... Nf6 {[%clk 0:02:59.9]} 5. Nc3 {[%clk 0:02:56]}
5... Nc6 {[%clk 0:02:59.5]} 6. Bg5 {[%clk 0:02:56.4]} 6... Be6 {[%clk
0:02:57.6]} 7. Be2 {[%clk 0:02:56.8]} 7... Qa5 {[%clk 0:02:42.5]} 8. Bf3 {[%clk
0:02:53.9]} 8... dxc4 {[%clk 0:02:37.8]} 9. d5 {[%clk 0:02:53.6]} 9... Rd8
{[%clk 0:02:26.2]} 10. Bd2 {[%clk 0:02:36]} 10... Nxd5 {[%clk 0:02:11.2]} 11.
Nxd5 {[%clk 0:02:35.7]} 11... Rxd5 {[%clk 0:02:02.9]} 12. Bxa5 {[%clk
0:02:27.9]} 12... Rxd1+ {[%clk 0:02:03.8]} 13. Rxd1 {[%clk 0:02:28.2]} 13...
Nxa5 {[%clk 0:02:04.7]} 14. Ne2 {[%clk 0:02:27.4]} 14... g6 {[%clk 0:02:02.9]}
15. Nf4 {[%clk 0:02:19]} 15... Bd7 {[%clk 0:01:54.9]} 16. Nd5 {[%clk 0:01:47]}
16... Bg7 {[%clk 0:01:44.1]} 17. Nc3 {[%clk 0:01:18.3]} 17... e6 {[%clk
0:01:38.3]} 18. O-O {[%clk 0:01:17.5]} 18... Ke7 {[%clk 0:01:38]} 19. Rd2 {[%clk
0:01:16.3]} 19... Rc8 {[%clk 0:01:34.1]} 20. Rfd1 {[%clk 0:01:16.5]} 20... Be8
{[%clk 0:01:31.6]} 21. Ne4 {[%clk 0:01:10.8]} 21... Rc7 {[%clk 0:01:14.2]} 22.
g3 {[%clk 0:00:59.3]} 22... Ba4 {[%clk 0:01:09.8]} 23. Re1 {[%clk 0:00:56.8]}
23... Bc6 {[%clk 0:01:04.6]} 24. Kg2 {[%clk 0:00:55.3]} 24... b5 {[%clk
0:00:55.3]} 25. Nc3 {[%clk 0:00:55.6]} 25... a6 {[%clk 0:00:48.4]} 26. Bxc6
{[%clk 0:00:51.2]} 26... Rxc6 {[%clk 0:00:49.3]} 27. Red1 {[%clk 0:00:46]} 27...
Rc7 {[%clk 0:00:48]} 28. a3 {[%clk 0:00:39.7]} 28... Nb7 {[%clk 0:00:46]} 29. h4
{[%clk 0:00:36.1]} 29... Nc5 {[%clk 0:00:40.4]} 30. Rd6 {[%clk 0:00:31.6]} 30...
Ra7 {[%clk 0:00:29.2]} 31. Rb6 {[%clk 0:00:30]} 31... Bxc3 {[%clk 0:00:25.9]}
32. bxc3 {[%clk 0:00:29.5]} 32... Na4 {[%clk 0:00:26.4]} 33. Rc6 {[%clk
0:00:23.1]} 33... Nxc3 {[%clk 0:00:26.1]} 34. Rdd6 {[%clk 0:00:23.7]} 34... a5
{[%clk 0:00:21.1]} 35. f3 {[%clk 0:00:16.6]} 35... Nd5 {[%clk 0:00:18.7]} 36.
Kf2 {[%clk 0:00:15.5]} 36... c3 {[%clk 0:00:18.3]} 37. Ke2 {[%clk 0:00:14.6]}
37... b4 {[%clk 0:00:18.5]} 38. axb4 {[%clk 0:00:12.9]} 38... axb4 {[%clk
0:00:19.4]} 39. Ra6 {[%clk 0:00:12.2]} 39... Rb7 {[%clk 0:00:15.8]} 40. Kd3
{[%clk 0:00:05.9]} 40... b3 {[%clk 0:00:16.2]} 0-1